[Event "January 2 Late 2024"]
[Site "https://www.chess.com"]
[Date "2024.01.02"]
[Round "9"]
[White "Paragua, Megan Althea"]
[Black "Clawitter, Craig"]
[Result "1-0"]
[Board "126"]
[TimeControl "180+1"]
[WhiteFideId "30973007"]
[BlackFideId "2023105"]
[WhiteElo "2368"]
[BlackElo "2239"]
[WhiteTeam "USA"]
[BlackTeam "USA"]
[WhiteClock "0:00:13"]
[BlackClock "0:00:11"]

1. e4 {[%clk 0:02:58]}  e6 {[%clk 0:02:59]} 2. d4 {[%clk 0:02:57]}  d5 {[%clk 0:02:57]} 3. Nd2 {[%clk 0:02:52]}  Be7 {[%clk 0:02:56]} 4. Ngf3 {[%clk 0:02:48]}  Nf6 {[%clk 0:02:56]} 5. e5 {[%clk 0:02:48]}  Nfd7 {[%clk 0:02:57]} 6. Bd3 {[%clk 0:02:48]}  c5 {[%clk 0:02:56]} 7. c3 {[%clk 0:02:48]}  Nc6 {[%clk 0:02:57]} 8. O-O {[%clk 0:02:48]}  a5 {[%clk 0:02:58]} 9. a4 {[%clk 0:02:47]}  cxd4 {[%clk 0:02:57]} 10. cxd4 {[%clk 0:02:45]}  Nb4 {[%clk 0:02:57]} 11. Bb5 {[%clk 0:02:43]}  O-O {[%clk 0:02:57]} 12. Nb3 {[%clk 0:02:43]}  f6 {[%clk 0:02:40]} 13. exf6 {[%clk 0:02:35]}  Nxf6 {[%clk 0:02:35]} 14. Re1 {[%clk 0:02:08]}  Ne4 {[%clk 0:02:00]} 15. Nbd2 {[%clk 0:01:58]}  Nd6 {[%clk 0:01:58]} 16. Nb3 {[%clk 0:01:51]}  Nxb5 {[%clk 0:01:33]} 17. axb5 {[%clk 0:01:49]}  b6 {[%clk 0:01:23]} 18. Bd2 {[%clk 0:01:45]}  Nd3 {[%clk 0:01:00]} 19. Re2 {[%clk 0:01:27]}  Nxb2 {[%clk 0:01:00]} 20. Qc1 {[%clk 0:01:22]}  Nc4 {[%clk 0:00:55]} 21. Bg5 {[%clk 0:01:17]}  Bd7 {[%clk 0:00:41]} 22. Bxe7 {[%clk 0:00:56]}  Qxe7 {[%clk 0:00:42]} 23. Qe1 {[%clk 0:00:43]}  Rae8 {[%clk 0:00:32]} 24. Nbd2 {[%clk 0:00:29]}  Bxb5 {[%clk 0:00:32]} 25. Nxc4 {[%clk 0:00:26]}  Bxc4 {[%clk 0:00:33]} 26. Re5 {[%clk 0:00:26]}  Qb4 {[%clk 0:00:16]} 27. Qe3 {[%clk 0:00:23]}  Rf6 {[%clk 0:00:13]} 28. Ng5 {[%clk 0:00:18]}  h6 {[%clk 0:00:12]} 29. Nxe6 {[%clk 0:00:16]}  Qe7 {[%clk 0:00:11]} 30. Re1 {[%clk 0:00:15]}  a4 {[%clk 0:00:10]} 31. Nc7 {[%clk 0:00:13]}  Qxc7 {[%clk 0:00:09]} 32. Rxe8+ {[%clk 0:00:12]}  Kh7 {[%clk 0:00:09]} 33. Re7 {[%clk 0:00:11]}  Qc6 {[%clk 0:00:09]} 34. Qg3 {[%clk 0:00:11]}  Rg6 {[%clk 0:00:09]} 35. Qb8 {[%clk 0:00:10]}  Qf6 {[%clk 0:00:06]} 36. Re8 {[%clk 0:00:10]}  Rg5 {[%clk 0:00:05]} 37. Rh8+ {[%clk 0:00:10]}  Kg6 {[%clk 0:00:05]} 38. Qe8+ {[%clk 0:00:10]}  Kf5 {[%clk 0:00:04]} 39. Re5+ {[%clk 0:00:08]}  Kf4 {[%clk 0:00:04]} 40. g3+ {[%clk 0:00:07]}  Kf3 {[%clk 0:00:04]} 41. Re3+ {[%clk 0:00:07]}  Kg4 {[%clk 0:00:04]} 42. Qd7+ {[%clk 0:00:06]}  Rf5 {[%clk 0:00:04]} 43. Qxa4 {[%clk 0:00:05]}  Rf3 {[%clk 0:00:02]} 44. Qd1 {[%clk 0:00:05]}  b5 {[%clk 0:00:01]} 45. h3+ {[%clk 0:00:05]}  Kxh3 {[%clk 0:00:02]} 46. Qxf3 {[%clk 0:00:05]}  Qxf3 {[%clk 0:00:02]} 47. Rxf3 {[%clk 0:00:06]}  b4 {[%clk 0:00:02]} 48. Rb8 {[%clk 0:00:06]}  b3 {[%clk 0:00:02]} 49. Rbxb3 {[%clk 0:00:06]}  Bxb3 {[%clk 0:00:02]} 50. Rxb3 {[%clk 0:00:07]}  Kg4 {[%clk 0:00:02]} 51. Rb5 {[%clk 0:00:07]}  g5 {[%clk 0:00:02]} 52. Rxd5 {[%clk 0:00:07]}  h5 {[%clk 0:00:03]} 53. Rd6 {[%clk 0:00:08]}  h4 {[%clk 0:00:04]} 54. Rh6 {[%clk 0:00:08]}  hxg3 {[%clk 0:00:04]} 55. fxg3 {[%clk 0:00:09]}  Kxg3 {[%clk 0:00:05]} 56. d5 {[%clk 0:00:09]}  Kf4 {[%clk 0:00:05]} 57. d6 {[%clk 0:00:10]}  g4 {[%clk 0:00:06]} 58. d7 {[%clk 0:00:11]}  g3 {[%clk 0:00:07]} 59. d8=Q {[%clk 0:00:11]}  g2 {[%clk 0:00:08]} 60. Qd2+ {[%clk 0:00:12]}  Kg3 {[%clk 0:00:09]} 61. Qxg2+ {[%clk 0:00:12]}  Kf4 {[%clk 0:00:09]} 62. Rf6+ {[%clk 0:00:12]}  Ke5 {[%clk 0:00:10]} 63. Qg5+ {[%clk 0:00:12]}  Kd4 {[%clk 0:00:10]} 64. Re6 {[%clk 0:00:12]}  Kc3 {[%clk 0:00:10]} 65. Qd5 {[%clk 0:00:12]}  Kb2 {[%clk 0:00:10]} 66. Rc6 {[%clk 0:00:12]}  Ka1 {[%clk 0:00:11]} 67. Qb5 {[%clk 0:00:12]}  Ka2 {[%clk 0:00:11]} 68. Ra6# {[%clk 0:00:13]} 1-0

[Event "January 2 Late 2024"]
[Site "https://www.chess.com"]
[Date "2024.01.02"]
[Round "9"]
[White "Wendt, Jan-Dietrich"]
[Black "MiguelEduardoGB"]
[Result "1-0"]
[Board "128"]
[TimeControl "180+1"]
[WhiteFideId "4623797"]
[WhiteElo "2347"]
[BlackElo "2205"]
[WhiteTeam "GER"]
[WhiteClock "0:01:07"]
[BlackClock "0:00:30"]

1. Nf3 {[%clk 0:02:56]}  Nf6 {[%clk 0:02:59]} 2. c4 {[%clk 0:02:56]}  g6 {[%clk 0:03:00]} 3. Nc3 {[%clk 0:02:55]}  Bg7 {[%clk 0:03:00]} 4. g3 {[%clk 0:02:56]}  O-O {[%clk 0:03:00]} 5. Bg2 {[%clk 0:02:56]}  c5 {[%clk 0:02:59]} 6. O-O {[%clk 0:02:56]}  Nc6 {[%clk 0:02:59]} 7. d4 {[%clk 0:02:56]}  cxd4 {[%clk 0:02:58]} 8. Nxd4 {[%clk 0:02:57]}  Nxd4 {[%clk 0:02:58]} 9. Qxd4 {[%clk 0:02:56]}  a6 {[%clk 0:02:59]} 10. c5 {[%clk 0:02:54]}  Ne8 {[%clk 0:02:31]} 11. Qb4 {[%clk 0:02:35]}  d6 {[%clk 0:02:18]} 12. Rd1 {[%clk 0:02:21]}  dxc5 {[%clk 0:02:00]} 13. Qxc5 {[%clk 0:02:21]}  Qc7 {[%clk 0:01:57]} 14. Be3 {[%clk 0:02:15]}  Rb8 {[%clk 0:01:39]} 15. Nd5 {[%clk 0:02:08]}  Qxc5 {[%clk 0:01:39]} 16. Bxc5 {[%clk 0:02:09]}  Bxb2 {[%clk 0:01:39]} 17. Rab1 {[%clk 0:02:06]}  Bf6 {[%clk 0:01:06]} 18. Nxe7+ {[%clk 0:01:27]}  Bxe7 {[%clk 0:00:39]} 19. Bxe7 {[%clk 0:01:28]}  b5 {[%clk 0:00:37]} 20. Rd8 {[%clk 0:01:17]}  Bf5 {[%clk 0:00:33]} 21. Rxb8 {[%clk 0:01:08]}  Bxb1 {[%clk 0:00:33]} 22. Bxf8 {[%clk 0:01:07]}  Kxf8 {[%clk 0:00:30]} 23. Bc6 {[%clk 0:01:07]} 1-0

[Event "January 2 Late 2024"]
[Site "https://www.chess.com"]
[Date "2024.01.02"]
[Round "9"]
[White "Kleibel, Uwe"]
[Black "Porat, Tori"]
[Result "1-0"]
[Board "129"]
[TimeControl "180+1"]
[WhiteFideId "1270982"]
[BlackFideId "30982626"]
[WhiteElo "2339"]
[BlackElo "2185"]
[WhiteTeam "GER"]
[BlackTeam "USA"]
[WhiteClock "0:01:13"]
[BlackClock "0:00:14"]

1. e4 {[%clk 0:03:00]}  c5 {[%clk 0:02:59]} 2. Nf3 {[%clk 0:03:00]}  Nc6 {[%clk 0:02:59]} 3. Bb5 {[%clk 0:03:00]}  e6 {[%clk 0:02:58]} 4. Bxc6 {[%clk 0:02:59]}  bxc6 {[%clk 0:02:58]} 5. d3 {[%clk 0:02:59]}  Ne7 {[%clk 0:02:59]} 6. h4 {[%clk 0:02:57]}  h5 {[%clk 0:02:58]} 7. b3 {[%clk 0:02:54]}  Ng6 {[%clk 0:02:57]} 8. Bb2 {[%clk 0:02:54]}  Qc7 {[%clk 0:02:46]} 9. g3 {[%clk 0:02:54]}  Bb7 {[%clk 0:02:43]} 10. Nbd2 {[%clk 0:02:52]}  e5 {[%clk 0:02:34]} 11. Nc4 {[%clk 0:02:49]}  d6 {[%clk 0:02:33]} 12. Qd2 {[%clk 0:02:42]}  Bc8 {[%clk 0:02:29]} 13. Qa5 {[%clk 0:02:40]}  Qxa5+ {[%clk 0:02:21]} 14. Nxa5 {[%clk 0:02:41]}  Bd7 {[%clk 0:02:20]} 15. Nd2 {[%clk 0:02:38]}  Be7 {[%clk 0:02:18]} 16. Ndc4 {[%clk 0:02:31]}  Rc8 {[%clk 0:02:14]} 17. Nb7 {[%clk 0:02:25]}  O-O {[%clk 0:01:47]} 18. Nbxd6 {[%clk 0:02:16]}  Bxd6 {[%clk 0:01:47]} 19. Nxd6 {[%clk 0:02:17]}  Rb8 {[%clk 0:01:37]} 20. O-O-O {[%clk 0:02:13]}  Bg4 {[%clk 0:01:33]} 21. Rde1 {[%clk 0:02:11]}  f6 {[%clk 0:01:24]} 22. Nc4 {[%clk 0:02:07]}  Rfd8 {[%clk 0:01:19]} 23. Ba3 {[%clk 0:02:02]}  Nf8 {[%clk 0:01:06]} 24. Bxc5 {[%clk 0:01:59]}  Ne6 {[%clk 0:01:02]} 25. Bxa7 {[%clk 0:01:54]}  Ra8 {[%clk 0:01:02]} 26. Bb6 {[%clk 0:01:55]}  Rdb8 {[%clk 0:00:58]} 27. Kb2 {[%clk 0:01:53]}  c5 {[%clk 0:00:55]} 28. a4 {[%clk 0:01:50]}  Ra6 {[%clk 0:00:42]} 29. a5 {[%clk 0:01:47]}  Rc8 {[%clk 0:00:27]} 30. Ne3 {[%clk 0:01:29]}  Bf3 {[%clk 0:00:23]} 31. Rhf1 {[%clk 0:01:28]}  Nd4 {[%clk 0:00:22]} 32. Nd5 {[%clk 0:01:26]}  Be2 {[%clk 0:00:19]} 33. Rh1 {[%clk 0:01:23]}  Kf7 {[%clk 0:00:19]} 34. c3 {[%clk 0:01:20]}  Bf3 {[%clk 0:00:18]} 35. cxd4 {[%clk 0:01:19]}  Bxh1 {[%clk 0:00:19]} 36. Rxh1 {[%clk 0:01:20]}  cxd4 {[%clk 0:00:19]} 37. Nc7 {[%clk 0:01:13]}  Ke7 {[%clk 0:00:14]} 38. Nxa6 {[%clk 0:01:13]} 1-0

[Event "January 2 Late 2024"]
[Site "https://www.chess.com"]
[Date "2024.01.02"]
[Round "9"]
[White "Kostiukov, Alexandr"]
[Black "Montano Vicente, Guadalupe"]
[Result "0-1"]
[Board "130"]
[TimeControl "180+1"]
[WhiteFideId "14108100"]
[BlackFideId "5181399"]
[WhiteElo "2338"]
[BlackElo "2172"]
[WhiteTeam "UKR"]
[BlackTeam "MEX"]
[WhiteClock "0:00:00"]
[BlackClock "0:00:03"]

1. g3 {[%clk 0:02:54]}  d5 {[%clk 0:02:57]} 2. Bg2 {[%clk 0:02:54]}  e5 {[%clk 0:02:57]} 3. c4 {[%clk 0:02:54]}  dxc4 {[%clk 0:02:55]} 4. Qa4+ {[%clk 0:02:54]}  Bd7 {[%clk 0:02:49]} 5. Qxc4 {[%clk 0:02:54]}  Nc6 {[%clk 0:02:49]} 6. Nf3 {[%clk 0:02:52]}  Bd6 {[%clk 0:02:50]} 7. O-O {[%clk 0:02:52]}  Nf6 {[%clk 0:02:48]} 8. Nc3 {[%clk 0:02:44]}  O-O {[%clk 0:02:48]} 9. d4 {[%clk 0:02:25]}  exd4 {[%clk 0:02:39]} 10. Nxd4 {[%clk 0:01:59]}  Ne5 {[%clk 0:02:36]} 11. Qb3 {[%clk 0:01:54]}  Rb8 {[%clk 0:02:22]} 12. Ndb5 {[%clk 0:01:43]}  Bc6 {[%clk 0:02:09]} 13. Nxd6 {[%clk 0:01:35]}  Qxd6 {[%clk 0:01:58]} 14. Rd1 {[%clk 0:01:27]}  Qc5 {[%clk 0:01:42]} 15. Be3 {[%clk 0:01:25]}  Qc4 {[%clk 0:01:38]} 16. Bd4 {[%clk 0:00:58]}  Bxg2 {[%clk 0:00:30]} 17. Bxe5 {[%clk 0:00:41]}  Qxb3 {[%clk 0:00:19]} 18. axb3 {[%clk 0:00:40]}  Bc6 {[%clk 0:00:19]} 19. Rxa7 {[%clk 0:00:32]}  Rbc8 {[%clk 0:00:18]} 20. Bxf6 {[%clk 0:00:26]}  gxf6 {[%clk 0:00:18]} 21. f3 {[%clk 0:00:26]}  Rfe8 {[%clk 0:00:19]} 22. Kf2 {[%clk 0:00:26]}  f5 {[%clk 0:00:18]} 23. b4 {[%clk 0:00:26]}  Re5 {[%clk 0:00:16]} 24. f4 {[%clk 0:00:20]}  Re6 {[%clk 0:00:14]} 25. b5 {[%clk 0:00:20]}  Be4 {[%clk 0:00:14]} 26. Rd7 {[%clk 0:00:14]}  Rce8 {[%clk 0:00:10]} 27. Rxc7 {[%clk 0:00:04]}  h6 {[%clk 0:00:09]} 28. Rc5 {[%clk 0:00:03]}  Kg7 {[%clk 0:00:08]} 29. Ra1 {[%clk 0:00:02]}  Kg6 {[%clk 0:00:08]} 30. Rd1 {[%clk 0:00:03]}  b6 {[%clk 0:00:08]} 31. Rc7 {[%clk 0:00:02]}  Bc2 {[%clk 0:00:05]} 32. Rdd7 {[%clk 0:00:02]}  Rf6 {[%clk 0:00:03]} 33. Rc6 {[%clk 0:00:02]}  Ree6 {[%clk 0:00:02]} 34. Rxe6 {[%clk 0:00:02]}  Rxe6 {[%clk 0:00:02]} 35. Rc7 {[%clk 0:00:03]}  Be4 {[%clk 0:00:02]} 36. Nxe4 {[%clk 0:00:02]}  fxe4 {[%clk 0:00:02]} 37. Rc6 {[%clk 0:00:02]}  Kf5 {[%clk 0:00:03]} 38. Rxe6 {[%clk 0:00:01]}  Kxe6 {[%clk 0:00:03]} 39. Ke3 {[%clk 0:00:02]}  f5 {[%clk 0:00:03]} 40. h3 {[%clk 0:00:02]}  Kd5 {[%clk 0:00:04]} 41. b4 {[%clk 0:00:00]}  h5 {[%clk 0:00:03]} 0-1

[Event "January 2 Late 2024"]
[Site "https://www.chess.com"]
[Date "2024.01.02"]
[Round "9"]
[White "Fernandez Hernandez, Gerardo"]
[Black "Novikova, Margarita"]
[Result "0-1"]
[Board "132"]
[TimeControl "180+1"]
[WhiteFideId "2207400"]
[BlackFideId "14109689"]
[WhiteElo "2329"]
[BlackElo "2167"]
[WhiteTeam "ESP"]
[BlackTeam "GER"]
[WhiteClock "0:00:03"]
[BlackClock "0:00:59"]

1. e4 {[%clk 0:03:00]}  d5 {[%clk 0:02:56]} 2. exd5 {[%clk 0:03:00]}  Qxd5 {[%clk 0:02:57]} 3. Nc3 {[%clk 0:03:00]}  Qd6 {[%clk 0:02:57]} 4. d4 {[%clk 0:02:59]}  Nf6 {[%clk 0:02:58]} 5. Nf3 {[%clk 0:02:59]}  c6 {[%clk 0:02:58]} 6. Ne5 {[%clk 0:02:51]}  Nbd7 {[%clk 0:02:56]} 7. Nc4 {[%clk 0:02:50]}  Qc7 {[%clk 0:02:55]} 8. Qf3 {[%clk 0:02:49]}  Nb6 {[%clk 0:02:50]} 9. Bf4 {[%clk 0:02:43]}  Qd8 {[%clk 0:02:50]} 10. O-O-O {[%clk 0:02:41]}  Bg4 {[%clk 0:02:48]} 11. Qd3 {[%clk 0:02:21]}  Bxd1 {[%clk 0:02:46]} 12. Qxd1 {[%clk 0:02:21]}  Nxc4 {[%clk 0:02:44]} 13. Bxc4 {[%clk 0:02:21]}  e6 {[%clk 0:02:44]} 14. Re1 {[%clk 0:02:20]}  Bd6 {[%clk 0:02:39]} 15. Bg5 {[%clk 0:02:12]}  Be7 {[%clk 0:02:39]} 16. Bf4 {[%clk 0:02:10]}  O-O {[%clk 0:02:38]} 17. g4 {[%clk 0:01:58]}  b5 {[%clk 0:02:38]} 18. Bd3 {[%clk 0:01:54]}  b4 {[%clk 0:02:34]} 19. Na4 {[%clk 0:01:47]}  Nd5 {[%clk 0:02:33]} 20. Bd2 {[%clk 0:01:42]}  Bg5 {[%clk 0:02:29]} 21. Nc5 {[%clk 0:01:39]}  Be7 {[%clk 0:02:24]} 22. h4 {[%clk 0:01:23]}  Bxc5 {[%clk 0:02:21]} 23. dxc5 {[%clk 0:01:23]}  Qe7 {[%clk 0:02:18]} 24. h5 {[%clk 0:01:13]}  Qxc5 {[%clk 0:02:16]} 25. h6 {[%clk 0:01:08]}  g6 {[%clk 0:02:10]} 26. Qe2 {[%clk 0:01:06]}  Nc7 {[%clk 0:01:58]} 27. Qf3 {[%clk 0:00:47]}  Qd5 {[%clk 0:01:52]} 28. Be4 {[%clk 0:00:37]}  Qxa2 {[%clk 0:01:51]} 29. Bxb4 {[%clk 0:00:33]}  Rad8 {[%clk 0:01:46]} 30. c3 {[%clk 0:00:15]}  Qa1+ {[%clk 0:01:39]} 31. Bb1 {[%clk 0:00:14]}  Nd5 {[%clk 0:01:19]} 32. Qe4 {[%clk 0:00:10]}  Nxb4 {[%clk 0:01:04]} 33. Qe5 {[%clk 0:00:09]}  Nd3+ {[%clk 0:01:02]} 34. Kc2 {[%clk 0:00:06]}  Nxe5 {[%clk 0:01:02]} 35. Rxe5 {[%clk 0:00:03]}  Rb8 {[%clk 0:00:59]} 0-1

[Event "January 2 Late 2024"]
[Site "https://www.chess.com"]
[Date "2024.01.02"]
[Round "9"]
[White "Doublekk14"]
[Black "Bouget, Alexandre"]
[Result "0-1"]
[Board "135"]
[TimeControl "180+1"]
[BlackFideId "681318"]
[WhiteElo "2247"]
[BlackElo "2394"]
[BlackTeam "FRA"]
[WhiteClock "0:00:00"]
[BlackClock "0:01:29"]

1. c4 {[%clk 0:02:51]}  e5 {[%clk 0:02:58]} 2. Nc3 {[%clk 0:02:50]}  Nc6 {[%clk 0:02:57]} 3. e3 {[%clk 0:02:50]}  Bc5 {[%clk 0:02:54]} 4. Nf3 {[%clk 0:02:49]}  d6 {[%clk 0:02:45]} 5. d4 {[%clk 0:02:41]}  exd4 {[%clk 0:02:46]} 6. exd4 {[%clk 0:02:29]}  Bb6 {[%clk 0:02:46]} 7. Nd5 {[%clk 0:02:27]}  Nge7 {[%clk 0:02:43]} 8. Nxb6 {[%clk 0:02:25]}  axb6 {[%clk 0:02:42]} 9. Bd3 {[%clk 0:02:26]}  Bg4 {[%clk 0:02:39]} 10. Be3 {[%clk 0:02:21]}  d5 {[%clk 0:02:37]} 11. O-O {[%clk 0:02:17]}  h6 {[%clk 0:02:24]} 12. h3 {[%clk 0:02:12]}  Be6 {[%clk 0:02:24]} 13. b3 {[%clk 0:02:00]}  O-O {[%clk 0:02:19]} 14. Ne5 {[%clk 0:01:50]}  Nxe5 {[%clk 0:02:15]} 15. dxe5 {[%clk 0:01:49]}  dxc4 {[%clk 0:02:15]} 16. bxc4 {[%clk 0:01:47]}  Nf5 {[%clk 0:02:12]} 17. Bxf5 {[%clk 0:01:36]}  Bxf5 {[%clk 0:02:13]} 18. c5 {[%clk 0:01:35]}  b5 {[%clk 0:02:05]} 19. Qb3 {[%clk 0:01:31]}  c6 {[%clk 0:02:04]} 20. Rfd1 {[%clk 0:01:16]}  Qe7 {[%clk 0:01:59]} 21. f4 {[%clk 0:01:12]}  Ra4 {[%clk 0:01:57]} 22. Rd6 {[%clk 0:01:09]}  Rfa8 {[%clk 0:01:55]} 23. g4 {[%clk 0:01:06]}  Ra3 {[%clk 0:01:38]} 24. Qd1 {[%clk 0:00:48]}  Rxe3 {[%clk 0:01:34]} 25. gxf5 {[%clk 0:00:45]}  Qh4 {[%clk 0:01:35]} 26. Qd2 {[%clk 0:00:00]}  Rxh3 {[%clk 0:01:29]} 0-1

[Event "January 2 Late 2024"]
[Site "https://www.chess.com"]
[Date "2024.01.02"]
[Round "9"]
[White "HouseOfDurin"]
[Black "Ambrogi, Agustin"]
[Result "0-1"]
[Board "136"]
[TimeControl "180+1"]
[BlackFideId "170933"]
[WhiteElo "2239"]
[BlackElo "2372"]
[BlackTeam "ARG"]
[WhiteClock "0:00:09"]
[BlackClock "0:00:46"]

1. d4 {[%clk 0:03:00]}  d5 {[%clk 0:02:51]} 2. Bg5 {[%clk 0:03:01]}  f6 {[%clk 0:02:50]} 3. Bh4 {[%clk 0:03:01]}  Nh6 {[%clk 0:02:51]} 4. f3 {[%clk 0:03:01]}  c5 {[%clk 0:02:45]} 5. c3 {[%clk 0:03:01]}  cxd4 {[%clk 0:02:43]} 6. cxd4 {[%clk 0:03:02]}  Qb6 {[%clk 0:02:44]} 7. Qd2 {[%clk 0:02:59]}  Nc6 {[%clk 0:02:44]} 8. Bf2 {[%clk 0:02:59]}  Bf5 {[%clk 0:02:42]} 9. e3 {[%clk 0:02:45]}  Nb4 {[%clk 0:02:37]} 10. Na3 {[%clk 0:02:45]}  Rc8 {[%clk 0:02:36]} 11. Bb5+ {[%clk 0:02:40]}  Nc6 {[%clk 0:02:36]} 12. Ne2 {[%clk 0:02:24]}  e6 {[%clk 0:02:35]} 13. O-O {[%clk 0:02:21]}  Bxa3 {[%clk 0:02:35]} 14. Bxc6+ {[%clk 0:02:21]}  Rxc6 {[%clk 0:02:35]} 15. bxa3 {[%clk 0:02:21]}  Rc2 {[%clk 0:02:35]} 16. Qd1 {[%clk 0:02:12]}  Qb2 {[%clk 0:02:26]} 17. Ng3 {[%clk 0:02:05]}  Rd2 {[%clk 0:02:24]} 18. Qa4+ {[%clk 0:02:05]}  Kf7 {[%clk 0:02:23]} 19. Qd7+ {[%clk 0:01:58]}  Kg6 {[%clk 0:02:23]} 20. e4 {[%clk 0:01:50]}  dxe4 {[%clk 0:02:20]} 21. fxe4 {[%clk 0:01:50]}  Bg4 {[%clk 0:02:20]} 22. Rab1 {[%clk 0:01:43]}  Qxa2 {[%clk 0:02:15]} 23. Rxb7 {[%clk 0:01:43]}  Rg8 {[%clk 0:02:11]} 24. Rxa7 {[%clk 0:01:26]}  Be2 {[%clk 0:02:06]} 25. Nxe2 {[%clk 0:01:22]}  Rxe2 {[%clk 0:02:07]} 26. h3 {[%clk 0:01:16]}  Qc2 {[%clk 0:01:35]} 27. Qxe6 {[%clk 0:00:43]}  Rxe4 {[%clk 0:01:34]} 28. Qd5 {[%clk 0:00:35]}  Rge8 {[%clk 0:01:29]} 29. g4 {[%clk 0:00:25]}  Nxg4 {[%clk 0:01:29]} 30. hxg4 {[%clk 0:00:25]}  Rxg4+ {[%clk 0:01:27]} 31. Kh1 {[%clk 0:00:25]}  Ree4 {[%clk 0:01:07]} 32. Ra5 {[%clk 0:00:15]}  Rh4+ {[%clk 0:00:58]} 33. Kg2 {[%clk 0:00:15]}  Reg4+ {[%clk 0:00:53]} 34. Kf3 {[%clk 0:00:16]}  Qd3+ {[%clk 0:00:51]} 35. Be3 {[%clk 0:00:15]}  Qxf1+ {[%clk 0:00:51]} 36. Bf2 {[%clk 0:00:15]}  Qd3+ {[%clk 0:00:47]} 37. Be3 {[%clk 0:00:15]}  Qd1+ {[%clk 0:00:47]} 38. Kf2 {[%clk 0:00:09]}  Rh2+ {[%clk 0:00:46]} 0-1

[Event "January 2 Late 2024"]
[Site "https://www.chess.com"]
[Date "2024.01.02"]
[Round "9"]
[White "Romero Ruscalleda, Josep"]
[Black "Yushko, Olga"]
[Result "0-1"]
[Board "137"]
[TimeControl "180+1"]
[WhiteFideId "2231859"]
[BlackFideId "14114500"]
[WhiteElo "2313"]
[BlackElo "2202"]
[WhiteTeam "ESP"]
[BlackTeam "UKR"]
[WhiteClock "0:00:01"]
[BlackClock "0:00:06"]

1. e4 {[%clk 0:03:00]}  e6 {[%clk 0:02:59]} 2. d4 {[%clk 0:03:00]}  d5 {[%clk 0:03:00]} 3. e5 {[%clk 0:03:00]}  c5 {[%clk 0:03:00]} 4. c3 {[%clk 0:03:00]}  Nc6 {[%clk 0:03:00]} 5. Be3 {[%clk 0:03:00]}  Qb6 {[%clk 0:03:01]} 6. Qd2 {[%clk 0:03:00]}  cxd4 {[%clk 0:03:01]} 7. cxd4 {[%clk 0:02:59]}  Nge7 {[%clk 0:03:00]} 8. Nf3 {[%clk 0:02:58]}  Nf5 {[%clk 0:02:59]} 9. Bd3 {[%clk 0:02:58]}  Be7 {[%clk 0:02:56]} 10. Nc3 {[%clk 0:02:57]}  O-O {[%clk 0:02:55]} 11. Bxf5 {[%clk 0:02:56]}  exf5 {[%clk 0:02:55]} 12. Nxd5 {[%clk 0:02:56]}  Qd8 {[%clk 0:02:53]} 13. Nxe7+ {[%clk 0:02:55]}  Nxe7 {[%clk 0:02:52]} 14. O-O {[%clk 0:02:51]}  Nd5 {[%clk 0:02:50]} 15. Bg5 {[%clk 0:02:50]}  Qb6 {[%clk 0:02:43]} 16. Qc2 {[%clk 0:02:16]}  h6 {[%clk 0:02:35]} 17. Bd2 {[%clk 0:02:15]}  Be6 {[%clk 0:02:31]} 18. b3 {[%clk 0:02:00]}  Rac8 {[%clk 0:02:30]} 19. Qd3 {[%clk 0:01:58]}  Rcd8 {[%clk 0:02:02]} 20. Rfc1 {[%clk 0:01:55]}  Ne7 {[%clk 0:01:59]} 21. Qc3 {[%clk 0:01:43]}  Nc6 {[%clk 0:01:55]} 22. Be3 {[%clk 0:01:37]}  Rd5 {[%clk 0:01:51]} 23. h4 {[%clk 0:01:28]}  Rc8 {[%clk 0:01:45]} 24. Qb2 {[%clk 0:01:18]}  Rcd8 {[%clk 0:01:41]} 25. Rc2 {[%clk 0:01:13]}  Nb4 {[%clk 0:01:39]} 26. Rc3 {[%clk 0:01:09]}  R5d7 {[%clk 0:01:32]} 27. d5 {[%clk 0:01:04]}  Qa6 {[%clk 0:01:18]} 28. dxe6 {[%clk 0:01:02]}  Qxe6 {[%clk 0:01:17]} 29. Rc4 {[%clk 0:00:47]}  Nd3 {[%clk 0:01:12]} 30. Qc3 {[%clk 0:00:45]}  Rd5 {[%clk 0:00:47]} 31. Rd4 {[%clk 0:00:43]}  Nxe5 {[%clk 0:00:40]} 32. Nxe5 {[%clk 0:00:39]}  Qxe5 {[%clk 0:00:35]} 33. Rad1 {[%clk 0:00:32]}  Rxd4 {[%clk 0:00:33]} 34. Bxd4 {[%clk 0:00:27]}  Qe4 {[%clk 0:00:32]} 35. Qe3 {[%clk 0:00:20]}  Qc6 {[%clk 0:00:31]} 36. Rc1 {[%clk 0:00:19]}  Qd5 {[%clk 0:00:30]} 37. Bxa7 {[%clk 0:00:19]}  b5 {[%clk 0:00:28]} 38. Bb6 {[%clk 0:00:18]}  Rb8 {[%clk 0:00:26]} 39. Qc5 {[%clk 0:00:17]}  Qe4 {[%clk 0:00:24]} 40. Ba7 {[%clk 0:00:15]}  Re8 {[%clk 0:00:24]} 41. Qxb5 {[%clk 0:00:14]}  f4 {[%clk 0:00:24]} 42. Qc5 {[%clk 0:00:14]}  f3 {[%clk 0:00:23]} 43. gxf3 {[%clk 0:00:13]}  Qxf3 {[%clk 0:00:23]} 44. Qd4 {[%clk 0:00:12]}  Re4 {[%clk 0:00:22]} 45. Qd8+ {[%clk 0:00:12]}  Kh7 {[%clk 0:00:22]} 46. Qd6 {[%clk 0:00:09]}  Rg4+ {[%clk 0:00:21]} 47. Kf1 {[%clk 0:00:09]}  Qh1+ {[%clk 0:00:20]} 48. Ke2 {[%clk 0:00:10]}  Qxc1 {[%clk 0:00:20]} 49. Qd3+ {[%clk 0:00:10]}  g6 {[%clk 0:00:18]} 50. Qf3 {[%clk 0:00:09]}  Qc2+ {[%clk 0:00:18]} 51. Kf1 {[%clk 0:00:09]}  Qc1+ {[%clk 0:00:17]} 52. Ke2 {[%clk 0:00:09]}  Qc2+ {[%clk 0:00:11]} 53. Kf1 {[%clk 0:00:09]}  Qb1+ {[%clk 0:00:09]} 54. Ke2 {[%clk 0:00:08]}  Re4+ {[%clk 0:00:09]} 55. Kd2 {[%clk 0:00:06]}  Qe1+ {[%clk 0:00:09]} 56. Kc2 {[%clk 0:00:05]}  Re2+ {[%clk 0:00:09]} 57. Kd3 {[%clk 0:00:05]}  Qd1+ {[%clk 0:00:09]} 58. Kc4 {[%clk 0:00:05]}  Rc2+ {[%clk 0:00:08]} 59. Kb4 {[%clk 0:00:05]}  Qd6+ {[%clk 0:00:08]} 60. Ka4 {[%clk 0:00:04]}  Qc6+ {[%clk 0:00:06]} 61. Kb4 {[%clk 0:00:04]}  Qxf3 {[%clk 0:00:07]} 62. Kb5 {[%clk 0:00:02]}  Rxa2 {[%clk 0:00:07]} 63. b4 {[%clk 0:00:02]}  Rxa7 {[%clk 0:00:06]} 64. Kb6 {[%clk 0:00:02]}  Rb7+ {[%clk 0:00:06]} 65. Ka6 {[%clk 0:00:02]}  Qc6+ {[%clk 0:00:06]} 66. Ka5 {[%clk 0:00:01]}  Qb5# {[%clk 0:00:06]} 0-1